Workbook

Sheet Resumen General
A1: Resumen General Liquidación de Crédito SNETOR vs. POLIMFLEX
A2: Concepto | B2: Valor
A3: Capital | B3: ='Liquidación Intereses'!A3 -> 147935646
A4: Intereses Moratorios | B4: ='Liquidación Intereses'!F60 -> 197920758.5
A5: Cláusula penal | B5: 15000000
A6: Agencias en Derecho | B6: 4800000
A7: Total: | B7: =SUM(B3:B6) -> 365656404.5

Sheet Liquidación Intereses
A1: Datos para liquidación
A2: Capital | B2: Fecha de inicio de la mora | C2: Fecha de presentación de liquidación
A3: 147935646 | B3: 2020-01-27 | C3: 2024-04-10
A5: Fecha | D5: Interés Anual Efectivo Comercial
A6: Desde | B6: Hasta | C6: Capital | D6: Interes Bancario Corriente | E6: Tasa de Usura | F6: Interes Moratorio | G6: Capital + Intereses Periódico
A7: 2020-01-27 | B7: 2020-01-31 | C7: =A3 -> 147935646 | D7: 0.1877 | E7: =SUM(D7*1.5) -> 0.28155 | F7: =C7*(E7/360)*(B7-A7) -> 462792.0126 | G7: =C7+F7 -> 148398438
A8: 2020-02-01 | B8: 2020-02-29 | C8: 147935646 | D8: 0.1906 | E8: =SUM(D8*1.5) -> 0.2859 | F8: =C8*(E8/360)*(B8-A8) -> 3289595.648 | G8: =G7+F8 -> 151688033.7
A9: 2020-03-01 | B9: 2020-03-31 | C9: 147935646 | D9: 0.1895 | E9: 0.28425 | F9: 3504225.615 | G9: =G8+F9 -> 155192259.3
A10: 2020-04-01 | B10: 2020-04-30 | C10: 147935646 | D10: 0.1869 | E10: 0.28035 | F10: 3340941.645 | G10: 158533200.9
A11: 2020-05-01 | B11: 2020-05-31 | C11: 147935646 | D11: 0.1819 | E11: 0.27285 | F11: 3363686.751 | G11: 161896887.7
A12: 2020-06-01 | B12: 2020-06-30 | C12: 147935646 | D12: 0.1812 | E12: 0.2718 | F12: 3239050.969 | G12: 165135938.6
A13: 2020-07-01 | B13: 2020-07-31 | C13: 147935646 | D13: 0.1812 | E13: 0.2718 | F13: 3350742.382 | G13: 168486681
A14: 2020-08-01 | B14: 2020-08-31 | C14: 147935646 | D14: 0.1829 | E14: 0.27435 | F14: 3382178.707 | G14: 171868859.7
A15: 2020-09-01 | B15: 2020-09-30 | C15: 147935646 | D15: 0.1835 | E15: 0.27525 | F15: 3280164.751 | G15: 175149024.5
A16: 2020-10-01 | B16: 2020-10-31 | C16: 147935646 | D16: 0.1809 | E16: 0.27135 | F16: 3345194.795 | G16: 178494219.3
A17: 2020-11-01 | B17: 2020-11-30 | C17: 147935646 | D17: 0.1784 | E17: 0.2676 | F17: 3188999.409 | G17: 181683218.7
A18: 2020-12-01 | B18: 2020-12-31 | C18: 147935646 | D18: 0.1746 | E18: 0.2619 | F18: 3228695.474 | G18: 184911914.2
A19: 2021-01-01 | B19: 2021-01-31 | C19: 147935646 | D19: 0.1732 | E19: 0.2598 | F19: 3202806.736 | G19: 188114720.9
A20: 2021-02-01 | B20: 2021-02-28 | C20: 147935646 | D20: 0.1754 | E20: 0.2631 | F20: 2919140.135 | G20: 191033861
A21: 2021-03-01 | B21: 2021-03-31 | C21: 147935646 | D21: 0.1741 | E21: 0.26115 | F21: 3219449.496 | G21: 194253310.5
A22: 2021-04-01 | B22: 2021-04-30 | C22: 147935646 | D22: 0.1731 | E22: 0.25965 | F22: 3094258.956 | G22: 197347569.5
A23: 2021-05-01 | B23: 2021-05-31 | C23: 147935646 | D23: 0.1722 | E23: 0.2583 | F23: 3184314.78 | G23: 200531884.3
A24: 2021-06-01 | B24: 2021-06-30 | C24: 147935646 | D24: 0.1721 | E24: =SUM(D24*1.5) -> 0.25815 | F24: =C24*(E24/360)*(B24-A24) -> 3076383.398 | G24: 203608267.7
A25: 2021-07-01 | B25: 2021-07-31 | C25: 147935646 | D25: 0.1718 | E25: 0.2577 | F25: =C25*(E25/360)*(B25-A25) -> 3176917.998 | G25: 206785185.7
A26: 2021-08-01 | B26: 2021-08-31 | C26: 147935646 | D26: 0.1724 | E26: 0.2586 | F26: 3188013.171 | G26: 209973198.8
A27: 2021-09-01 | B27: 2021-09-30 | C27: 147935646 | D27: 0.1719 | E27: 0.25785 | F27: 3072808.287 | G27: 213046007.1
A28: 2021-10-01 | B28: 2021-10-31 | C28: 147935646 | D28: 0.1708 | E28: 0.2562 | F28: 3158426.042 | G28: 216204433.2
A29: 2021-11-01 | B29: 2021-11-30 | C29: 147935646 | D29: 0.1727 | E29: 0.25905 | F29: 3087108.733 | G29: 219291541.9
A30: 2021-12-01 | B30: 2021-12-31 | C30: 147935646 | D30: 0.1746 | E30: 0.2619 | F30: 3228695.474 | G30: 222520237.4
A31: 2022-01-01 | B31: 2022-01-31 | C31: 147935646 | D31: 0.1766 | E31: 0.2649 | F31: 3265679.385 | G31: 225785916.7
A32: 2022-02-01 | B32: 2022-02-28 | C32: 147935646 | D32: 0.183 | E32: 0.2745 | F32: 3045625.112 | G32: 228831541.9
A33: 2022-03-01 | B33: 2022-03-31 | C33: 147935646 | D33: 0.1847 | E33: 0.27705 | F33: 3415464.227 | G33: 232247006.1
A34: 2022-04-01 | B34: 2022-04-30 | C34: 147935646 | D34: 0.1905 | E34: 0.28575 | F34: 3405293.651 | G34: 235652299.7
A35: 2022-05-01 | B35: 2022-05-31 | C35: 147935646 | D35: 0.1971 | E35: 0.29565 | F35: 3644764.478 | G35: 239297064.2
A36: 2022-06-01 | B36: 2022-06-30 | C36: 147935646 | D36: 0.204 | E36: 0.306 | F36: 3646613.674 | G36: 242943677.9
A37: 2022-07-01 | B37: 2022-07-31 | C37: 147935646 | D37: 0.2128 | E37: 0.3192 | F37: 3935088.184 | G37: 246878766.1
A38: 2022-08-01 | B38: 2022-08-31 | C38: 147935646 | D38: 0.2221 | E38: 0.33315 | F38: 4107063.372 | G38: 250985829.4
A39: 2022-09-01 | B39: 2022-09-30 | C39: 147935646 | D39: 0.235 | E39: 0.3525 | F39: 4200755.948 | G39: 255186585.4
A40: 2022-10-01 | B40: 2022-10-31 | C40: 147935646 | D40: 0.2461 | E40: 0.36915 | F40: 4550870.31 | G40: 259737455.7
A41: 2022-11-01 | B41: 2022-11-30 | C41: 147935646 | D41: 0.2578 | E41: 0.3867 | F41: 4608318.653 | G41: 264345774.4
A42: 2022-12-01 | B42: 2022-12-31 | C42: 147935646 | D42: 0.2764 | E42: 0.4146 | F42: 5111176.569 | G42: 269456950.9
A43: 2023-01-01 | B43: 2023-01-31 | C43: 147935646 | D43: 0.2884 | E43: 0.4326 | F43: 5333080.038 | G43: 274790031
A44: 2023-02-01 | B44: 2023-02-28 | C44: 147935646 | D44: 0.3018 | E44: 0.4527 | F44: 5022785.021 | G44: 279812816
A45: 2023-03-01 | B45: 2023-03-31 | C45: 147935646 | D45: 0.3084 | E45: 0.4626 | F45: 5702919.153 | G45: 285515735.1
A46: 2023-04-01 | B46: 2023-04-30 | C46: 147935646 | D46: 0.3139 | E46: 0.47085 | F46: 5611137.413 | G46: 291126872.6
A47: 2023-05-01 | B47: 2023-05-31 | C47: 147935646 | D47: 0.3027 | E47: 0.45405 | F47: 5597515.006 | G47: 296724387.6
A48: 2023-06-01 | B48: 2023-06-30 | C48: 147935646 | D48: 0.2976 | E48: 0.4464 | F48: 5319765.83 | G48: 302044153.4
A49: 2023-07-01 | B49: 2023-07-31 | C49: 147935646 | D49: 0.2936 | E49: 0.4404 | F49: 5429238.208 | G49: 307473391.6
A50: 2023-08-01 | B50: 2023-08-31 | C50: 147935646 | D50: 0.2875 | E50: 0.43125 | F50: 5316437.278 | G50: 312789828.9
A51: 2023-09-01 | B51: 2023-09-30 | C51: 147935646 | D51: 0.2803 | E51: 0.42045 | F51: 5010518.69 | G51: 317800347.6
A52: 2023-10-01 | B52: 2023-10-31 | C52: 147935646 | D52: 0.2653 | E52: 0.39795 | F52: 4905915.86 | G52: 322706263.4
A53: 2023-11-01 | B53: 2023-11-30 | C53: 147935646 | D53: 0.2552 | E53: 0.3828 | F53: 4561842.204 | G53: 327268105.6
A54: 2023-12-01 | B54: 2023-12-31 | C54: 147935646 | D54: 0.2504 | E54: 0.3756 | F54: 4630385.72 | G54: 331898491.3
A55: 2024-01-01 | B55: 2024-01-31 | C55: 147935646 | D55: 0.2332 | E55: 0.3498 | F55: 4312324.081 | G55: 336210815.4
A56: 2024-02-01 | B56: 2024-02-29 | C56: 147935646 | D56: 0.2331 | E56: 0.34965 | F56: 4023109.893 | G56: 340233925.3
A57: 2024-03-01 | B57: 2024-03-31 | C57: 147935646 | D57: 0.222 | E57: 0.333 | F57: =C57*(E57/360)*(B57-A57) -> 4105214.177 | G57: 344339139.5
A58: 2024-04-01 | B58: 2024-04-10 | C58: 147935646 | D58: 0.2735 | E58: 0.41025 | F58: =C58*(E58/360)*(B58-A58) -> 1517264.969 | G58: 345856404.5
E60: Total Intereses Moratorios: | F60: =SUM(F7:F58) -> 197920758.5
